bitfinex-derivatives/quotes_BTCF0:USTF0_20251208
["timestamp","ask_amount","ask_price","bid_price","bid_amount"]
[1765191688691,0.070362,92141.0,92140.0,0.001]
[1765191690992,0.07046083,92141.0,92140.0,0.001]
[1765191691987,0.07046083,92141.0,92140.0,0.05673]
[1765191693092,0.05960883,92141.0,92140.0,0.05673]
[1765191697694,0.05960883,92141.0,92140.0,0.07329]
[1765191697890,0.05960883,92141.0,92140.0,0.05673]
[1765191698284,0.00109883,92141.0,92140.0,0.07329]
[1765191699294,0.05867273,92159.0,92158.0,0.05573]
[1765191700390,0.03080273,92159.0,92158.0,0.06658]
[1765191700592,0.00216273,92159.0,92158.0,0.06658]
[1765191700781,0.03680273,92159.0,92158.0,0.06658]
[1765191700982,0.00816273,92159.0,92158.0,0.06658]
[1765191701400,0.00716273,92159.0,92158.0,0.06658]
[1765191701895,0.03480273,92159.0,92158.0,0.06658]
[1765191702095,0.00616273,92159.0,92158.0,0.06658]
[1765191702796,0.03407273,92159.0,92158.0,0.06658]
[1765191702994,0.03307273,92159.0,92158.0,0.06658]
[1765191703195,0.03407273,92159.0,92158.0,0.06658]
[1765191703398,0.02907273,92159.0,92158.0,0.06658]
[1765191703587,0.06032273,92159.0,92158.0,0.06658]
[1765191703783,0.05932273,92159.0,92158.0,0.06658]
[1765191703984,0.05632273,92159.0,92158.0,0.06658]
[1765191704294,0.05932273,92159.0,92158.0,0.06658]
[1765191704789,0.05932273,92159.0,92158.0,0.05573]
[1765191714002,0.05932273,92159.0,92151.0,0.0108508]
[1765191714003,0.067011,92149.0,92148.0,0.02984]
[1765191714400,0.067011,92149.0,92148.0,0.05792]
[1765191715806,0.067011,92149.0,92148.0,0.05892]
[1765191717007,0.067011,92149.0,92148.0,0.001]
[1765191718910,0.05884,92133.0,92132.0,0.08481211]
[1765191719209,0.05884,92133.0,92132.0,0.05562]
[1765191719408,0.05884,92127.0,92126.0,0.0664737]
[1765191720201,0.05884,92127.0,92126.0,0.05562]
[1765191720803,0.05884,92127.0,92126.0,0.02814]
[1765191721204,0.05884,92127.0,92126.0,0.05862]
[1765191721811,0.05884,92127.0,92126.0,0.06162]
[1765191734423,0.02908,92127.0,92126.0,0.06162]
[1765191734613,0.0565,92127.0,92126.0,0.06162]
[1765191735613,0.01768,92135.0,92126.0,0.06162]
[1765191735926,0.16098756,92136.0,92135.0,0.05889]
[1765191736113,0.05723282,92136.0,92135.0,0.05889]
[1765191736523,0.07511282,92136.0,92135.0,0.05889]
[1765191737522,0.07511282,92136.0,92135.0,0.05989]
[1765191738519,0.07511282,92136.0,92135.0,0.003]
[1765191738829,0.07511282,92136.0,92135.0,0.03192]
[1765191739126,0.07511282,92136.0,92135.0,0.06189]
[1765191740034,0.05723282,92136.0,92135.0,0.06189]
[1765191740721,0.07511282,92136.0,92135.0,0.06189]
[1765191741517,0.05723282,92136.0,92135.0,0.06189]
[1765191742118,0.07511282,92136.0,92135.0,0.06189]
[1765191742519,0.05723282,92136.0,92135.0,0.06189]
[1765191742719,0.02981282,92136.0,92135.0,0.06189]
[1765191742921,0.05723282,92136.0,92135.0,0.06189]
[1765191744530,0.02981282,92136.0,92135.0,0.06189]
[1765191744731,0.05723282,92136.0,92135.0,0.06189]
[1765191749334,0.07511282,92136.0,92135.0,0.06189]
[1765191752335,0.08596542,92136.0,92135.0,0.003]
[1765191752533,0.08596542,92136.0,92135.0,0.03192]
[1765191752841,0.07511282,92136.0,92135.0,0.06189]
[1765191754134,0.07511282,92136.0,92135.0,0.003]
[1765191754432,0.07511282,92136.0,92135.0,0.03192]
[1765191755134,0.07511282,92136.0,92135.0,0.06189]
[1765191755338,0.05723282,92136.0,92135.0,0.06189]
[1765191757030,0.07511282,92136.0,92135.0,0.06189]
[1765191757343,0.07511282,92136.0,92135.0,0.003]
[1765191760852,0.07511282,92136.0,92135.0,0.001]
[1765191761056,0.05707,92129.0,92128.0,0.08808211]
[1765191761653,0.0679234,92129.0,92128.0,0.08808211]
[1765191762442,0.0679234,92129.0,92128.0,0.03019211]
[1765191765440,0.1179234,92129.0,92128.0,0.03019211]
[1765191765640,0.0679234,92129.0,92128.0,0.001]
[1765191766846,0.0679234,92129.0,92128.0,0.03029]
[1765191774353,0.0679234,92129.0,92128.0,0.001]
[1765191774862,0.4983234,92129.0,92128.0,0.001]
[1765191775160,0.5712834,92129.0,92128.0,0.001]
[1765191776558,0.5712834,92129.0,92128.0,0.05849]
[1765191777154,0.0679234,92129.0,92128.0,0.05849]
[1765191777354,0.5712834,92129.0,92128.0,0.05849]
[1765191777761,0.0679234,92129.0,92128.0,0.05849]
[1765191777961,0.0679234,92129.0,92128.0,0.001]
[1765191778360,0.5712834,92129.0,92128.0,0.001]
[1765191779765,0.05619,92118.0,92117.0,0.02919211]
[1765191780060,0.0224145,92120.0,92116.0,0.08504211]
[1765191780061,0.0670448,92117.0,92116.0,0.08504211]
[1765191780262,0.0670448,92117.0,92116.0,0.05585]
[1765191780455,0.05619,92117.0,92116.0,0.05585]
[1765191781262,0.05619,92117.0,92116.0,0.05685]
[1765191782153,0.05619,92117.0,92116.0,0.08604211]
[1765191782358,0.05619,92117.0,92116.0,0.08704211]
[1765191784561,0.05619,92117.0,92116.0,0.05785]
[1765191784758,0.05619,92117.0,92116.0,0.08704211]
[1765191785158,0.05619,92117.0,92116.0,0.05785]
[1765191793065,0.05619,92117.0,92116.0,0.02955]
[1765191793267,0.05619,92117.0,92116.0,0.002]
[1765191796178,0.05619,92117.0,92116.0,0.02985]
[1765191796680,0.05619,92117.0,92116.0,0.002]
[1765191799476,0.06119,92117.0,92116.0,0.001]
[1765191800175,0.07357,92108.0,92107.0,0.05655]
[1765191800764,0.07357,92108.0,92097.0,0.00012396]
[1765191800765,0.05749,92098.0,92097.0,0.00012396]
[1765191800970,0.0683471,92098.0,92097.0,0.00012396]
[1765191801577,0.0683471,92098.0,92081.0,0.06921878]
[1765191801578,0.0683489,92082.0,92081.0,0.05655]
[1765191801875,0.0683489,92082.0,92081.0,0.02785]
[1765191802068,0.0683489,92082.0,92081.0,0.05655]
[1765191802570,0.0846498,92075.0,92074.0,0.06765057]
[1765191802775,0.08474068,92075.0,92074.0,0.05655]
[1765191804077,0.08474068,92075.0,92074.0,0.06355]
[1765191805877,0.08474068,92075.0,92074.0,0.007]
[1765191806175,0.08474068,92075.0,92074.0,0.03485]
[1765191807183,0.08474068,92075.0,92074.0,0.03385]
[1765191807391,0.08474068,92075.0,92074.0,0.006]
[1765191807689,0.08474068,92075.0,92074.0,0.002]
[1765191807874,0.08474068,92075.0,92074.0,0.005]
[1765191808684,0.05749,92057.0,92056.0,0.073932]
[1765191808878,0.05756844,92057.0,92056.0,0.073932]
[1765191809882,0.05856844,92057.0,92056.0,0.087932]
[1765191810174,0.00107844,92057.0,92056.0,0.087932]
[1765191811487,0.05856844,92057.0,92056.0,0.087932]
[1765191812783,0.00107844,92057.0,92056.0,0.087932]
[1765191812989,0.03080844,92057.0,92056.0,0.087932]
[1765191813190,0.05856844,92057.0,92056.0,0.087932]
[1765191813685,0.00107844,92057.0,92056.0,0.087932]
[1765191815876,0.05856844,92057.0,92056.0,0.087932]
[1765191816893,0.05856844,92057.0,92056.0,0.081412]
[1765191817189,0.05856844,92057.0,92056.0,0.07055]
[1765191818890,0.05856844,92057.0,92056.0,0.06655]
[1765191819077,0.05756844,92057.0,92056.0,0.06455]
[1765191820580,7.844e-05,92057.0,92056.0,0.06455]
[1765191821087,0.02980844,92057.0,92056.0,0.06455]
[1765191821880,0.05756844,92057.0,92056.0,0.06455]
[1765191824288,0.05756844,92057.0,92056.0,0.008]
[1765191824490,0.06911,92045.0,92044.0,0.0395534]
[1765191824689,0.06911,92045.0,92044.0,0.0686934]
[1765191825385,0.06921454,92045.0,92044.0,0.0686934]
[1765191825691,0.05643454,92045.0,92044.0,0.0736934]
[1765191826086,0.07397454,92045.0,92044.0,0.0736934]
[1765191827479,0.07397454,92045.0,92044.0,0.06283]
[1765191827684,0.07397454,92045.0,92044.0,0.005]
[1765191829091,0.07397454,92045.0,92044.0,0.03369]
[1765191829501,0.07397454,92045.0,92044.0,0.06283]
[1765191830492,0.05643454,92045.0,92044.0,0.03369]
[1765191831283,0.05643454,92045.0,92044.0,0.06283]
[1765191832083,0.05743454,92045.0,92044.0,0.06183]
[1765191832285,0.06143454,92045.0,92044.0,0.05883]
[1765191833089,0.00510454,92045.0,92044.0,0.05883]
[1765191833392,0.06143454,92045.0,92044.0,0.05883]
[1765191834294,0.06243454,92045.0,92044.0,0.05883]
[1765191834494,0.05843454,92045.0,92044.0,0.05783]
[1765191834695,0.06443454,92045.0,92044.0,0.05883]
[1765191836194,0.05843454,92045.0,92044.0,0.05783]
[1765191836400,0.06443454,92045.0,92044.0,0.05883]
[1765191836593,0.06243454,92045.0,92044.0,0.05883]
[1765191836790,0.06443454,92045.0,92044.0,0.05883]
[1765191843900,0.00810454,92045.0,92044.0,0.05883]
[1765191844598,0.05655,92060.0,92059.0,0.05506]
[1765191844791,0.05655,92060.0,92059.0,0.0659217]
[1765191845798,0.06055,92060.0,92059.0,0.0659217]
[1765191846006,0.06055,92060.0,92059.0,0.0669217]
[1765191846207,0.00016291,92066.0,92065.0,0.0832309]
[1765191846597,0.00016291,92066.0,92065.0,0.12225157]
[1765191848502,0.00016291,92066.0,92065.0,0.12425157]
[1765191849103,0.00016291,92066.0,92065.0,0.0852309]
[1765191849302,0.00116291,92066.0,92065.0,0.0852309]
[1765191850913,0.0674084,92087.0,92086.0,0.0659183]
[1765191851208,0.05655,92087.0,92086.0,0.0659183]
[1765191852209,0.05955,92087.0,92086.0,0.0659183]
[1765191852508,0.06355,92087.0,92086.0,0.0659183]
[1765191855198,0.06355,92087.0,92086.0,0.05506]
[1765191857910,0.0576,92082.0,92081.0,0.038839]
[1765191858107,0.0576,92082.0,92081.0,0.068429]
[1765191859307,0.0606,92082.0,92081.0,0.068429]
[1765191863418,0.0684594,92079.0,92078.0,0.0684293]
[1765191864609,0.0714594,92079.0,92078.0,0.0684293]
[1765191864810,0.0714594,92079.0,92078.0,0.0694293]
[1765191865005,0.0606,92079.0,92078.0,0.0694293]
[1765191867715,0.003,92079.0,92078.0,0.0694293]
[1765191869117,0.003,92079.0,92078.0,0.09858364]
[1765191869323,0.003,92079.0,92078.0,0.0694293]
[1765191882936,0.03291,92079.0,92078.0,0.0694293]
[1765191883230,0.003,92079.0,92078.0,0.0694293]
[1765191883423,0.06113,92079.0,92078.0,0.0694293]
[1765191885845,0.06113,92079.0,92078.0,0.07043847]
[1765191886135,0.06113,92079.0,92078.0,0.09853847]
[1765191886343,0.06113,92079.0,92078.0,0.001]
[1765191905250,0.06113,92079.0,92078.0,0.02855]
[1765191905448,0.06113,92079.0,92078.0,0.001]
[1765191915951,0.06113,92079.0,92077.0,0.00016291]
[1765191915952,0.0661394,92078.0,92077.0,0.00016291]
[1765191917155,0.0691394,92078.0,92077.0,0.00016291]
[1765191917550,0.0691394,92078.0,92077.0,0.00116291]
[1765191921670,0.5728594,92078.0,92077.0,0.00116291]
[1765191926273,0.0691394,92078.0,92077.0,0.02891291]
[1765191926482,0.5728594,92078.0,92077.0,0.05820591]
[1765191927977,0.5728594,92078.0,92077.0,0.03045591]
[1765191928179,0.5728594,92078.0,92077.0,0.00116291]
[1765191929871,0.0691394,92078.0,92077.0,0.00116291]
[1765191930176,0.5728194,92078.0,92077.0,0.00116291]
[1765191934182,0.0691394,92078.0,92077.0,0.00116291]
[1765191934581,0.5728194,92078.0,92077.0,0.00116291]
[1765191935280,0.5728194,92078.0,92077.0,0.05641291]
[1765191935581,0.56196,92078.0,92077.0,0.05641291]
[1765191946381,0.05828,92078.0,92077.0,0.00116291]
[1765191946582,0.56192,92078.0,92077.0,0.00116291]
[1765191948889,0.56192,92078.0,92077.0,0.02855291]
[1765191949091,0.56192,92078.0,92077.0,0.00116291]
[1765191949290,0.56192,92078.0,92077.0,0.02855291]
[1765191949491,0.56192,92078.0,92077.0,0.05645291]
[1765191956396,0.56192,92078.0,92077.0,0.08577589]
[1765191957893,0.56192,92078.0,92077.0,0.05787589]
[1765191959097,0.56192,92078.0,92077.0,0.08577589]
[1765191960202,0.56192,92078.0,92077.0,0.05787589]
[1765191961001,0.56192,92078.0,92077.0,0.08577589]
[1765191961902,0.56192,92078.0,92077.0,0.05787589]
[1765191963300,0.56192,92078.0,92077.0,0.08577589]
[1765191963605,0.05828,92078.0,92077.0,0.05645291]
[1765191963804,0.003,92078.0,92077.0,0.05645291]
[1765191964393,0.003,92078.0,92077.0,0.1150752]
[1765191964705,0.05856,92094.0,92093.0,0.05696]
[1765191964902,0.05856,92094.0,92093.0,0.0678176]
[1765191966405,0.06256,92094.0,92093.0,0.09712752]
[1765191966798,0.06656,92094.0,92093.0,0.09712752]
[1765191967105,0.06656,92094.0,92093.0,0.0678176]
[1765191967305,0.06656,92094.0,92093.0,0.09709466]
[1765191967306,0.06566,92094.0,92093.0,0.09709466]
[1765191967504,0.06566,92094.0,92093.0,0.0678176]
[1765191967701,0.008,92094.0,92093.0,0.0678176]
[1765191968103,0.0359805,92094.0,92093.0,0.0678176]
[1765191968701,0.0069805,92094.0,92093.0,0.0678176]
[1765191969303,0.0069805,92094.0,92093.0,0.10680595]
[1765191971116,0.0069805,92094.0,92093.0,0.0678176]
[1765191971307,0.0359805,92094.0,92093.0,0.0678176]
[1765191971506,0.01043584,92094.0,92093.0,0.0678176]
[1765191971708,0.00016291,92096.0,92095.0,0.05696]
[1765191971908,0.05856,92111.0,92110.0,0.05696]
[1765191972112,0.05856,92111.0,92110.0,0.0678156]
[1765191972805,0.05856,92111.0,92110.0,0.07839048]
[1765191973311,0.06556,92111.0,92110.0,0.07839048]
[1765191973918,0.07156,92111.0,92110.0,0.07939048]
[1765191975707,0.07156,92111.0,92110.0,0.07839048]
[1765191975912,0.06656,92111.0,92110.0,0.07839048]
[1765191976418,0.05956,92111.0,92110.0,0.08039048]
[1765191976814,0.03,92111.0,92110.0,0.08039048]
[1765191977122,0.001,92111.0,92110.0,0.08039048]
[1765191978520,0.05555291,92120.0,92119.0,0.0679346]
[1765191979621,0.05855291,92120.0,92119.0,0.0679346]
[1765191980419,0.00316291,92120.0,92119.0,0.0679346]
[1765191982117,0.05855291,92120.0,92119.0,0.0679346]
[1765191982312,0.03083291,92120.0,92119.0,0.0679346]
[1765191982617,0.00316291,92120.0,92119.0,0.0679346]
[1765191986227,0.05855291,92120.0,92119.0,0.0679346]
[1765191993924,0.07820741,92120.0,92119.0,0.0108546]
[1765191994124,0.0108552,92117.0,92116.0,0.0108549]
[1765191994435,0.0662452,92117.0,92116.0,0.0108549]
[1765191995328,0.0692452,92117.0,92116.0,0.0108549]
[1765191995920,0.05839,92117.0,92116.0,0.0108549]
[1765191997134,0.05839,92117.0,92116.0,0.0396349]
[1765191999333,0.05839,92117.0,92116.0,0.0108549]
[1765191999736,0.05839,92117.0,92116.0,0.0396349]
[1765192000424,0.05839,92117.0,92116.0,0.0108549]
[1765192001939,0.05839,92117.0,92116.0,0.0679349]
[1765192002440,0.05839,92117.0,92116.0,0.0396349]
[1765192002642,0.05839,92117.0,92116.0,0.0694749]
[1765192018146,0.05739,92117.0,92116.0,0.0694749]
[1765192019545,0.003,92117.0,92116.0,0.0694749]
[1765192020134,0.00016291,92120.0,92116.0,0.0694749]
[1765192020135,0.00016291,92120.0,92119.0,0.0108546]
[1765192020339,0.00795,92126.0,92125.0,0.0700639]
[1765192020540,0.16048141,92140.0,92139.0,0.0700622]
[1765192020737,0.05671,92140.0,92139.0,0.0700622]
[1765192021144,0.07429,92152.0,92151.0,0.0700608]
[1765192021450,0.05671,92152.0,92151.0,0.0700608]
[1765192021952,0.07429,92152.0,92151.0,0.0700608]
[1765192023547,0.07429,92152.0,92151.0,0.0740608]
[1765192025450,0.07429,92152.0,92151.0,0.08470845]
[1765192026253,0.05671,92152.0,92151.0,0.08470845]
[1765192029858,0.02901,92152.0,92151.0,0.08470845]
[1765192030252,0.05894,92152.0,92151.0,0.08470845]
[1765192032060,0.05874282,92161.0,92160.0,0.0803297]
[1765192033554,0.05874282,92161.0,92160.0,0.0823297]
[1765192033953,0.05974282,92161.0,92160.0,0.0823297]
[1765192034556,0.00116282,92161.0,92160.0,0.0823297]
[1765192035862,0.29510141,92180.0,92179.0,0.0108475]
[1765192036163,0.19133,92180.0,92179.0,0.0393275]
[1765192036462,0.19133,92180.0,92179.0,0.0671475]
[1765192036859,0.19533,92180.0,92179.0,0.0671475]
[1765192037253,0.19833,92180.0,92179.0,0.0671475]
[1765192040950,0.05858,92171.0,92170.0,0.06731133]
[1765192042048,0.06158,92171.0,92170.0,0.06731133]
[1765192042856,0.06258,92171.0,92170.0,0.06731133]
[1765192046357,0.06258,92171.0,92170.0,0.00016273]
[1765192048457,0.12111761,92171.0,92170.0,0.00016273]
[1765192049356,0.06258,92171.0,92170.0,0.00016273]
[1765192051757,0.05858,92163.0,92162.0,0.0108495]
[1765192052058,0.05858,92163.0,92162.0,0.0671495]
[1765192052855,0.0704294,92163.0,92162.0,0.0681495]
[1765192054157,0.12883148,92163.0,92162.0,0.0681495]
[1765192055267,0.12883148,92163.0,92162.0,0.001]
[1765192056268,0.0704294,92163.0,92162.0,0.001]
[1765192057560,0.0704294,92163.0,92162.0,0.02948]
[1765192058260,0.05958,92163.0,92162.0,0.0573]
[1765192060569,0.001,92163.0,92162.0,0.0573]
[1765192063264,0.0289,92163.0,92162.0,0.0573]
[1765192063470,0.05681,92163.0,92162.0,0.0573]
[1765192063667,0.0676594,92163.0,92162.0,0.0573]
[1765192063972,0.0676594,92163.0,92162.0,0.001]
[1765192068571,0.0676594,92163.0,92162.0,0.03071]
[1765192069372,0.05681,92163.0,92162.0,0.05775]
[1765192072282,0.05681,92163.0,92162.0,0.03071]
[1765192072671,0.05681,92163.0,92162.0,0.05775]
[1765192081089,0.001,92163.0,92162.0,0.05775]
[1765192086388,0.001,92163.0,92162.0,0.08694578]
[1765192087992,0.05621,92163.0,92162.0,0.08694578]
[1765192088187,0.05621,92163.0,92162.0,0.05775]
[1765192093488,0.001,92163.0,92162.0,0.05775]
[1765192095193,0.02907,92163.0,92162.0,0.05775]
[1765192095606,0.001,92163.0,92162.0,0.05775]
[1765192097500,0.05774,92163.0,92162.0,0.05775]
[1765192102201,0.05774,92163.0,92162.0,0.001]
[1765192104696,0.05774,92163.0,92162.0,0.05866]
[1765192105602,0.001,92163.0,92162.0,0.05866]
[1765192106405,0.02907,92163.0,92162.0,0.05866]
[1765192108701,0.05774,92163.0,92162.0,0.05866]
[1765192114309,0.05774,92163.0,92162.0,0.001]
[1765192114500,0.05774,92163.0,92162.0,0.02995]
[1765192114807,0.05664,92163.0,92162.0,0.05866]
[1765192115107,0.05664,92163.0,92162.0,0.001]
[1765192117702,0.11437366,92163.0,92162.0,0.001]
[1765192117901,0.05584,92163.0,92162.0,0.001]
[1765192118305,0.05674,92154.0,92153.0,0.03996323]
[1765192119413,0.0675905,92154.0,92153.0,0.00016273]
[1765192119601,0.0675905,92154.0,92153.0,0.00316273]
[1765192120709,0.0675905,92154.0,92153.0,0.03211273]
[1765192121410,0.0675905,92154.0,92153.0,0.06082273]
[1765192121619,0.05674,92154.0,92153.0,0.06082273]
[1765192138522,0.02941,92159.0,92158.0,0.066]
[1765192138824,0.05723,92159.0,92158.0,0.066]
[1765192139716,0.05823,92159.0,92158.0,0.066]
[1765192139916,0.05823,92159.0,92158.0,0.068]
[1765192141519,0.001,92159.0,92158.0,0.068]
[1765192146535,0.0605,92159.0,92158.0,0.09720769]
[1765192156439,0.0605,92159.0,92158.0,0.068]
[1765192159638,0.03077,92159.0,92158.0,0.068]
[1765192162330,0.001,92159.0,92158.0,0.068]
[1765192173444,0.001,92159.0,92158.0,0.10697931]
[1765192175050,0.06006,92159.0,92158.0,0.01285]
[1765192175544,0.06006,92159.0,92158.0,0.002]
[1765192175851,0.06006,92159.0,92153.0,0.00016273]
[1765192175852,0.05906,92154.0,92153.0,0.00016273]
[1765192176039,0.05816,92154.0,92153.0,0.00016273]
[1765192176238,0.05906,92150.0,92149.0,0.066671]
[1765192176848,0.00016273,92163.0,92161.0,0.0666696]
[1765192177141,0.02972273,92163.0,92162.0,0.08504538]
[1765192177449,0.05922273,92163.0,92162.0,0.05582]
[1765192179643,0.06022273,92163.0,92162.0,0.05582]
[1765192184553,0.02724,92176.0,92175.0,0.068868]
[1765192184748,0.05693,92176.0,92175.0,0.068868]
[1765192186453,0.05693,92176.0,92175.0,0.069868]
[1765192187154,0.05709273,92185.0,92184.0,0.0851369]
[1765192188055,0.05709273,92185.0,92184.0,0.0688669]
[1765192188853,0.05809273,92185.0,92184.0,0.0688669]
[1765192189449,0.05909273,92185.0,92184.0,0.0688669]
[1765192192758,0.05909273,92185.0,92184.0,0.0108469]
[1765192193855,0.03185273,92185.0,92184.0,0.0851369]
[1765192194165,0.05909273,92185.0,92184.0,0.0851369]
[1765192194359,0.05909273,92185.0,92184.0,0.0688669]
[1765192203977,0.05909273,92185.0,92184.0,0.0854569]
[1765192209390,0.05809273,92185.0,92184.0,0.0854569]
[1765192209689,0.05809273,92185.0,92184.0,0.0894569]
[1765192210090,3e-08,92185.0,92184.0,0.0894569]
[1765192210792,0.05867,92203.0,92202.0,0.0670348]
[1765192212497,0.05867,92203.0,92202.0,0.0690348]
[1765192213393,0.02905,92203.0,92202.0,0.07982593]
[1765192213593,0.05770273,92212.0,92211.0,0.0659437]
[1765192219000,0.06258273,92212.0,92211.0,0.0108437]
[1765192219405,0.0683844,92209.0,92208.0,0.010844]
[1765192219605,0.05754,92209.0,92208.0,0.010844]
[1765192220495,0.068384,92209.0,92208.0,0.010844]
[1765192220805,0.05754,92209.0,92208.0,0.010844]
[1765192221195,0.05754,92209.0,92208.0,0.065944]
[1765192221905,0.05754,92209.0,92208.0,0.066944]
[1765192231618,0.05754,92209.0,92208.0,0.084114]
[1765192232706,0.02861,92209.0,92208.0,0.084114]
[1765192233104,0.05754,92209.0,92208.0,0.084114]
[1765192235013,0.02861,92209.0,92208.0,0.084114]
[1765192236910,0.05754,92209.0,92208.0,0.084114]
[1765192238916,0.02861,92209.0,92208.0,0.084114]
[1765192239722,0.05856518,92212.0,92211.0,0.0659437]
[1765192240222,0.11610518,92212.0,92211.0,0.0659437]
[1765192240410,0.05770273,92212.0,92211.0,0.0659437]
[1765192240810,0.06954633,92212.0,92211.0,0.0659437]
[1765192241017,0.05870273,92212.0,92211.0,0.0659437]
[1765192244114,0.06954633,92212.0,92211.0,0.0659437]
[1765192244326,0.05870273,92212.0,92211.0,0.0659437]
[1765192264732,0.02977273,92212.0,92211.0,0.0659437]
[1765192264925,0.05890273,92212.0,92211.0,0.0659437]
[1765192271434,0.05890273,92212.0,92211.0,0.0826137]
[1765192280338,0.02977273,92212.0,92211.0,0.0826137]
[1765192280534,0.00116273,92212.0,92211.0,0.0826137]
[1765192281631,0.03068273,92212.0,92211.0,0.0826137]
[1765192282147,0.06026273,92212.0,92211.0,0.0826137]
[1765192287736,0.06026273,92212.0,92211.0,0.07177]
[1765192287937,0.06026273,92212.0,92202.0,0.01683273]
[1765192287938,0.0699447,92203.0,92202.0,0.00016273]
[1765192288249,0.5435047,92203.0,92202.0,0.00016273]
[1765192288450,0.5435047,92203.0,92184.0,0.05884]
[1765192288451,0.0699468,92185.0,92184.0,0.05884]
[1765192288838,0.0108475,92179.0,92178.0,0.05884]
[1765192289044,0.0699475,92179.0,92178.0,0.05884]
[1765192289240,0.0591,92179.0,92178.0,0.0696876]
[1765192289456,0.02952,92179.0,92178.0,0.0696876]
[1765192289754,0.0591,92179.0,92178.0,0.0696876]
[1765192291443,0.0591,92179.0,92178.0,0.0736876]
[1765192291654,0.0591,92179.0,92178.0,0.0796876]
[1765192292155,0.0591,92179.0,92178.0,0.0756876]
[1765192292345,0.0591,92179.0,92178.0,0.0776876]
[1765192292958,0.0591,92179.0,92178.0,0.0756876]
[1765192293144,0.0591,92179.0,92178.0,0.0776876]
[1765192293751,0.05926273,92188.0,92187.0,0.0696866]
[1765192294153,0.00016273,92188.0,92187.0,0.0696866]
[1765192294555,2.73e-06,92188.0,92187.0,0.0696866]
[1765192294950,2.73e-06,92188.0,92187.0,0.0736866]
[1765192295747,2.73e-06,92188.0,92187.0,0.0726866]
[1765192295950,2.73e-06,92188.0,92187.0,0.0746866]
[1765192298858,2.73e-06,92188.0,92187.0,0.0776866]
[1765192312065,0.02944273,92188.0,92187.0,0.0776866]
[1765192312265,0.05880273,92188.0,92187.0,0.0776866]
[1765192312962,0.07235273,92188.0,92187.0,0.0188466]
[1765192313164,0.13091495,92188.0,92187.0,0.0188466]
[1765192313364,0.07235273,92188.0,92187.0,0.0188466]
[1765192313569,0.07235273,92188.0,92187.0,0.0482566]
[1765192313970,0.05880273,92188.0,92187.0,0.0756566]
[1765192314173,0.05880273,92188.0,92187.0,0.0746566]
[1765192314766,0.05880273,92188.0,92187.0,0.0726566]
[1765192314973,0.05880273,92188.0,92187.0,0.0736566]
[1765192315365,0.05880273,92188.0,92187.0,0.0168466]
[1765192316569,0.05880273,92188.0,92187.0,0.0452566]
[1765192316776,0.05880273,92188.0,92187.0,0.0462566]
[1765192316978,0.05880273,92188.0,92187.0,0.0452566]
[1765192317479,0.05880273,92188.0,92187.0,0.0686566]
[1765192317669,0.05880273,92188.0,92187.0,0.0726566]
[1765192328781,0.05880273,92188.0,92187.0,0.0706566]
[1765192335590,0.05880273,92188.0,92187.0,0.0432566]
[1765192335789,0.05880273,92188.0,92187.0,0.0118466]
[1765192335988,0.05880273,92188.0,92187.0,0.0138466]
[1765192336290,0.07235273,92188.0,92187.0,0.003]
[1765192336488,0.13080468,92188.0,92187.0,0.003]
[1765192337282,0.07235273,92188.0,92187.0,0.001]
[1765192337483,0.07235273,92188.0,92187.0,0.003]
[1765192337884,0.05759,92185.0,92184.0,0.0690168]
[1765192338894,0.05759,92185.0,92184.0,0.0408268]
[1765192339194,0.05759,92185.0,92184.0,0.0428268]
[1765192339583,0.11609736,92185.0,92184.0,0.0710168]
[1765192339893,0.11609736,92185.0,92184.0,0.002]
[1765192340193,0.05759,92185.0,92184.0,0.002]
[1765192340491,0.05759,92185.0,92184.0,0.03298]
[1765192340993,0.05759,92185.0,92184.0,0.06117]
[1765192341493,0.05759,92185.0,92184.0,0.05917]
[1765192341687,0.05759,92185.0,92184.0,0.06017]
[1765192342087,0.05759,92185.0,92184.0,0.002]
[1765192342493,0.05759,92185.0,92184.0,0.001]
[1765192342692,0.05759,92185.0,92184.0,0.03098]
[1765192343191,0.05759,92185.0,92184.0,0.05917]
[1765192343585,0.05759,92185.0,92184.0,0.05817]
[1765192343896,0.05759,92185.0,92184.0,0.05917]
[1765192346583,0.05759,92185.0,92184.0,0.05817]
[1765192352693,0.0684378,92177.0,92176.0,0.0390378]
[1765192352894,0.5715178,92177.0,92176.0,0.0690178]
[1765192353884,0.56067,92177.0,92176.0,0.0720178]
[1765192354088,0.53099,92177.0,92176.0,0.0720178]
[1765192354286,0.56067,92177.0,92176.0,0.0720179]
[1765192354491,0.56067,92177.0,92176.0,0.03298]
[1765192354792,0.56067,92177.0,92176.0,0.06117]
[1765192354993,0.56067,92177.0,92176.0,0.03298]
[1765192355509,0.56067,92177.0,92176.0,0.06017]
[1765192355691,0.56067,92177.0,92176.0,0.06117]
[1765192356303,0.56067,92177.0,92176.0,0.06017]
[1765192356495,0.56067,92177.0,92176.0,0.05917]
[1765192391631,0.05759,92177.0,92176.0,0.05917]
[1765192398425,0.05759,92177.0,92176.0,0.001]
[1765192398825,0.47535,92177.0,92176.0,0.001]
[1765192399025,0.05759,92177.0,92176.0,0.001]
[1765192399224,0.0676486,92170.0,92169.0,0.00016273]
[1765192399424,0.07337,92160.0,92159.0,0.0689398]
[1765192400128,0.0568,92160.0,92159.0,0.0689398]
[1765192400433,0.0568,92160.0,92159.0,0.0729398]
[1765192401034,0.0568,92160.0,92159.0,0.0719398]
[1765192401833,0.0568,92160.0,92159.0,0.0739398]
[1765192403337,0.0568,92160.0,92159.0,0.0719398]
[1765192403527,0.0568,92160.0,92159.0,0.0739398]
[1765192403728,0.07337,92160.0,92159.0,0.0158498]
[1765192403927,0.07337,92160.0,92159.0,0.0739398]
[1765192405137,0.07337,92160.0,92159.0,0.0729398]
[1765192405637,0.07337,92160.0,92159.0,0.06209]
[1765192405826,0.07337,92160.0,92159.0,0.05909]
[1765192406028,0.07337,92160.0,92159.0,0.06009]
[1765192406525,0.07337,92160.0,92159.0,0.05909]
[1765192406729,0.07337,92160.0,92159.0,0.06109]
[1765192408131,0.0568,92160.0,92159.0,0.06009]
[1765192408335,0.0568,92160.0,92159.0,0.06109]